[Event "*** Titled Tuesday 3|2 Blitz"]
[Site "Chess.com"]
[Date "2015.05.05"]
[Round "3"]
[White "AlmirDzhumaev"]
[Black "desxmchna"]
[Result "0-1"]
[WhiteElo "2080"]
[BlackElo "2153"]
[TimeControl "180+2"]
[EndTime "11:35:15 PDT"]
[Termination "desxmchna won by checkmate"]

1. e4 {[%clk 0:03:01.9]} 1... c5 {[%clk 0:03:00.6]} 2. Nc3 {[%clk 0:03:02.7]}
2... Nc6 {[%clk 0:03:00.3]} 3. g3 {[%clk 0:03:04.2]} 3... g6 {[%clk 0:03:01.3]}
4. Bg2 {[%clk 0:03:05.3]} 4... Bg7 {[%clk 0:03:03]} 5. d3 {[%clk 0:03:05.8]}
5... Rb8 {[%clk 0:03:04.7]} 6. Be3 {[%clk 0:03:06.7]} 6... b5 {[%clk 0:03:06.4]}
7. Bxc5 {[%clk 0:03:04.6]} 7... b4 {[%clk 0:03:07.2]} 8. Na4 {[%clk 0:03:05.6]}
8... Qa5 {[%clk 0:03:05.1]} 9. b3 {[%clk 0:03:04]} 9... Bxa1 {[%clk 0:03:04.8]}
10. Qxa1 {[%clk 0:03:04.9]} 10... f6 {[%clk 0:03:03.9]} 11. Ne2 {[%clk
0:03:01.7]} 11... Nh6 {[%clk 0:03:04.2]} 12. h3 {[%clk 0:03:01.5]} 12... Nf7
{[%clk 0:03:05.4]} 13. f4 {[%clk 0:03:00.7]} 13... O-O {[%clk 0:03:05.5]} 14.
O-O {[%clk 0:03:01.1]} 14... d6 {[%clk 0:03:04.7]} 15. Be3 {[%clk 0:03:00.9]}
15... e5 {[%clk 0:03:05.6]} 16. f5 {[%clk 0:02:59.3]} 16... g5 {[%clk
0:03:04.7]} 17. h4 {[%clk 0:02:43.4]} 17... h6 {[%clk 0:03:05.3]} 18. hxg5
{[%clk 0:02:43.5]} 18... hxg5 {[%clk 0:03:06.6]} 19. g4 {[%clk 0:02:39.2]} 19...
Ba6 {[%clk 0:03:06.8]} 20. Kf2 {[%clk 0:02:38]} 20... Kg7 {[%clk 0:03:07.5]} 21.
Ng3 {[%clk 0:02:38]} 21... Nh6 {[%clk 0:03:03.1]} 22. Nh5+ {[%clk 0:02:37.2]}
22... Kf7 {[%clk 0:03:02.5]} 23. Bf3 {[%clk 0:02:37]} 23... Rh8 {[%clk
0:02:59.7]} 24. Qc1 {[%clk 0:02:37.1]} 24... Rbg8 {[%clk 0:02:59.1]} 25. Rh1
{[%clk 0:02:37.4]} 25... Ke7 {[%clk 0:02:54.8]} 26. Qb1 {[%clk 0:02:27.6]} 26...
Nf7 {[%clk 0:02:53.5]} 27. Nb2 {[%clk 0:02:26.7]} 27... Nd4 {[%clk 0:02:48.8]}
28. Bd1 {[%clk 0:02:26.7]} 28... Rc8 {[%clk 0:02:43.5]} 29. Nc4 {[%clk
0:02:27.6]} 29... Bxc4 {[%clk 0:02:44.1]} 30. dxc4 {[%clk 0:02:20.1]} 30... Qc5
{[%clk 0:02:35.9]} 31. Bf3 {[%clk 0:02:15.3]} 31... Rc6 {[%clk 0:02:27]} 32. Rd1
{[%clk 0:02:16.1]} 32... Ra6 {[%clk 0:02:27.6]} 33. Qb2 {[%clk 0:02:16.9]} 33...
Qa5 {[%clk 0:02:24.3]} 34. Bxd4 {[%clk 0:02:14.1]} 34... exd4 {[%clk 0:02:24.3]}
35. Ra1 {[%clk 0:01:53.2]} 35... Qe5 {[%clk 0:02:17.9]} 36. Kg2 {[%clk 0:01:46]}
36... Rc6 {[%clk 0:01:39]} 37. Rd1 {[%clk 0:01:46.5]} 37... Ra6 {[%clk
0:01:26.1]} 38. Rxd4 {[%clk 0:01:46.8]} 38... Ra8 {[%clk 0:01:13.6]} 39. Qa1
{[%clk 0:01:41.9]} 39... Rxa2 {[%clk 0:01:12.6]} 40. Qxa2 {[%clk 0:01:28.5]}
40... Qxd4 {[%clk 0:01:13.9]} 41. Qa6 {[%clk 0:01:22.9]} 41... Rb8 {[%clk
0:01:08.4]} 42. Qc6 {[%clk 0:01:20.4]} 42... Qd2+ {[%clk 0:00:55.6]} 43. Kh3
{[%clk 0:01:16.3]} 43... Rd8 {[%clk 0:00:51.4]} 44. Qc7+ {[%clk 0:00:57.1]}
44... Rd7 {[%clk 0:00:52.2]} 45. Qb8 {[%clk 0:00:58]} 45... Qf2 {[%clk
0:00:48.8]} 46. Bg2 {[%clk 0:00:51.9]} 46... Qh4# {[%clk 0:00:49.6]} 0-1

[Event "*** Titled Tuesday 3|2 Blitz"]
[Site "Chess.com"]
[Date "2015.05.05"]
[Round "3"]
[White "Imre91"]
[Black "amaidel"]
[Result "1-0"]
[WhiteElo "2556"]
[BlackElo "2290"]
[TimeControl "180+2"]
[EndTime "11:35:41 PDT"]
[Termination "Imre91 won by checkmate"]

1. Nf3 {[%clk 0:02:56.1]} 1... f5 {[%clk 0:03:00.2]} 2. g3 {[%clk 0:02:55.2]}
2... Nf6 {[%clk 0:03:01.1]} 3. Bg2 {[%clk 0:02:56.6]} 3... g6 {[%clk 0:03:02.2]}
4. O-O {[%clk 0:02:57.4]} 4... Bg7 {[%clk 0:03:03.5]} 5. b3 {[%clk 0:02:59]}
5... O-O {[%clk 0:03:04.6]} 6. Bb2 {[%clk 0:03:00.5]} 6... d6 {[%clk 0:03:05.9]}
7. d4 {[%clk 0:03:01.9]} 7... Qe8 {[%clk 0:03:06.8]} 8. Na3 {[%clk 0:03:01.2]}
8... Nc6 {[%clk 0:03:03.6]} 9. Nc4 {[%clk 0:03:00.5]} 9... e6 {[%clk 0:03:02.5]}
10. a4 {[%clk 0:02:59.5]} 10... h6 {[%clk 0:03:01.5]} 11. h4 {[%clk 0:02:55.3]}
11... Ne4 {[%clk 0:02:59.3]} 12. a5 {[%clk 0:02:44.6]} 12... a6 {[%clk
0:02:58.1]} 13. e3 {[%clk 0:02:33.1]} 13... g5 {[%clk 0:02:56.6]} 14. hxg5
{[%clk 0:02:32.8]} 14... hxg5 {[%clk 0:02:57.3]} 15. Nfd2 {[%clk 0:02:34.2]}
15... Nxd2 {[%clk 0:02:45.3]} 16. Qxd2 {[%clk 0:02:36.1]} 16... d5 {[%clk
0:02:43.7]} 17. Ne5 {[%clk 0:02:35.5]} 17... Nxe5 {[%clk 0:02:42.5]} 18. dxe5
{[%clk 0:02:37]} 18... Qh5 {[%clk 0:02:36.3]} 19. f4 {[%clk 0:02:36.8]} 19...
Bd7 {[%clk 0:01:52.9]} 20. Bf3 {[%clk 0:02:32.1]} 20... g4 {[%clk 0:01:51.1]}
21. Bg2 {[%clk 0:02:32.2]} 21... Bb5 {[%clk 0:01:48.9]} 22. Rfd1 {[%clk
0:02:31.4]} 22... c5 {[%clk 0:01:42.7]} 23. Rac1 {[%clk 0:02:24.1]} 23... c4
{[%clk 0:01:36.6]} 24. Bd4 {[%clk 0:02:19.9]} 24... Rac8 {[%clk 0:01:35.8]} 25.
Kf2 {[%clk 0:02:18.3]} 25... cxb3 {[%clk 0:01:26.5]} 26. cxb3 {[%clk 0:02:18.8]}
26... Qf7 {[%clk 0:01:08]} 27. Bc5 {[%clk 0:01:57.8]} 27... Rfd8 {[%clk
0:01:06]} 28. Rc3 {[%clk 0:01:59]} 28... Bf8 {[%clk 0:01:02.2]} 29. Rdc1 {[%clk
0:01:59.8]} 29... Bxc5 {[%clk 0:01:02]} 30. Rxc5 {[%clk 0:01:59.4]} 30... Rxc5
{[%clk 0:01:00.8]} 31. Rxc5 {[%clk 0:02:00.7]} 31... Qd7 {[%clk 0:01:01.6]} 32.
Qc3 {[%clk 0:01:59.5]} 32... Bc6 {[%clk 0:01:00.1]} 33. Qd4 {[%clk 0:01:53.4]}
33... Bb5 {[%clk 0:00:59.7]} 34. Qc3 {[%clk 0:01:49.6]} 34... Bc6 {[%clk
0:01:00.7]} 35. Bf1 {[%clk 0:01:51.1]} 35... d4 {[%clk 0:00:54.9]} 36. exd4
{[%clk 0:01:51.2]} 36... Be4 {[%clk 0:00:29.8]} 37. Ke3 {[%clk 0:01:47.1]} 37...
Qh7 {[%clk 0:00:29.7]} 38. Rc8 {[%clk 0:01:46]} 38... Qd7 {[%clk 0:00:24.9]} 39.
Rc7 {[%clk 0:01:40.7]} 39... Qe8 {[%clk 0:00:25.9]} 40. Qc5 {[%clk 0:01:37.9]}
40... Rd7 {[%clk 0:00:23.5]} 41. Bc4 {[%clk 0:01:26.4]} 41... Rxc7 {[%clk
0:00:20.3]} 42. Qxc7 {[%clk 0:01:27.8]} 42... Qf7 {[%clk 0:00:16.2]} 43. Qc8+
{[%clk 0:01:26.6]} 43... Kg7 {[%clk 0:00:16.5]} 44. Qxe6 {[%clk 0:01:27.6]}
44... Qh5 {[%clk 0:00:17.5]} 45. Qe7+ {[%clk 0:01:26]} 45... Kh8 {[%clk
0:00:17.1]} 46. Qf8+ {[%clk 0:01:26.7]} 46... Kh7 {[%clk 0:00:18.5]} 47. Bg8+
{[%clk 0:01:24.5]} 47... Kg6 {[%clk 0:00:19.5]} 48. Qf6# {[%clk 0:01:20]} 1-0

[Event "*** Titled Tuesday 3|2 Blitz"]
[Site "Chess.com"]
[Date "2015.05.05"]
[Round "3"]
[White "IMRosen"]
[Black "PowerThinking2650"]
[Result "1-0"]
[WhiteElo "2218"]
[BlackElo "2075"]
[TimeControl "180+2"]
[EndTime "11:35:59 PDT"]
[Termination "IMRosen won on time"]

1. c4 {[%clk 0:03:01.9]} 1... Nf6 {[%clk 0:02:59.9]} 2. Nc3 {[%clk 0:03:03.4]}
2... g6 {[%clk 0:03:00.9]} 3. g3 {[%clk 0:03:02.9]} 3... Bg7 {[%clk 0:03:00.2]}
4. Bg2 {[%clk 0:03:04.3]} 4... O-O {[%clk 0:03:01.1]} 5. Nf3 {[%clk 0:03:02.2]}
5... d6 {[%clk 0:03:01.2]} 6. O-O {[%clk 0:03:03.6]} 6... e5 {[%clk 0:03:02.1]}
7. d3 {[%clk 0:03:04.9]} 7... Nc6 {[%clk 0:03:01.9]} 8. Rb1 {[%clk 0:03:06.2]}
8... a5 {[%clk 0:03:02]} 9. a3 {[%clk 0:03:05.9]} 9... Bf5 {[%clk 0:02:59.8]}
10. Nd2 {[%clk 0:02:58.5]} 10... Qd7 {[%clk 0:02:56.9]} 11. Re1 {[%clk
0:02:59.9]} 11... Bh3 {[%clk 0:02:56.9]} 12. Bh1 {[%clk 0:03:01.2]} 12... Ng4
{[%clk 0:02:56.7]} 13. b4 {[%clk 0:02:54.1]} 13... axb4 {[%clk 0:02:56.8]} 14.
axb4 {[%clk 0:02:56]} 14... f5 {[%clk 0:02:56.3]} 15. b5 {[%clk 0:02:57]} 15...
Nd8 {[%clk 0:02:57.2]} 16. e3 {[%clk 0:02:48.9]} 16... f4 {[%clk 0:02:39.4]} 17.
Nde4 {[%clk 0:02:37.6]} 17... Ne6 {[%clk 0:02:18.5]} 18. Rb2 {[%clk 0:02:05.3]}
18... Ra1 {[%clk 0:02:00.9]} 19. Qe2 {[%clk 0:01:58.4]} 19... fxe3 {[%clk
0:01:35.1]} 20. Bxe3 {[%clk 0:01:54]} 20... Rxe1+ {[%clk 0:01:30.1]} 21. Qxe1
{[%clk 0:01:55.9]} 21... Nd4 {[%clk 0:01:25.2]} 22. Ng5 {[%clk 0:01:29.4]} 22...
Nh6 {[%clk 0:00:53.2]} 23. Bxb7 {[%clk 0:01:00.1]} 23... Bf5 {[%clk 0:00:37.6]}
24. Bd5+ {[%clk 0:00:25.7]} 24... Kh8 {[%clk 0:00:37.6]} 25. Ra2 {[%clk
0:00:23.2]} 25... Bxd3 {[%clk 0:00:36.1]} 26. Qd2 {[%clk 0:00:14.2]} 26... Bf5
{[%clk 0:00:21.9]} 27. Ra7 {[%clk 0:00:06]} 27... Ng4 {[%clk 0:00:19.1]} 28. b6
{[%clk 0:00:07.2]} 28... Nxe3 {[%clk 0:00:13.3]} 29. Qxe3 {[%clk 0:00:07.8]}
29... Qd8 {[%clk 0:00:10.1]} 30. Rxc7 {[%clk 0:00:08.2]} 30... h6 {[%clk
0:00:10.6]} 31. Nf3 {[%clk 0:00:08.8]} 31... Bh3 {[%clk 0:00:08.5]} 32. Nh4
{[%clk 0:00:06.4]} 32... Qe8 {[%clk 0:00:04.9]} 33. Be4 {[%clk 0:00:07.1]} 33...
Bf5 {[%clk 0:00:03.2]} 34. Nd5 {[%clk 0:00:06.9]} 1-0

[Event "*** Titled Tuesday 3|2 Blitz"]
[Site "Chess.com"]
[Date "2015.05.05"]
[Round "3"]
[White "Rijeka1999"]
[Black "chessloveyou"]
[Result "1/2-1/2"]
[WhiteElo "2218"]
[BlackElo "2100"]
[TimeControl "180+2"]
[EndTime "11:36:02 PDT"]
[Termination "Game drawn by repetition"]

1. e4 {[%clk 0:03:01.9]} 1... Nf6 {[%clk 0:03:01.2]} 2. e5 {[%clk 0:02:57.4]}
2... Nd5 {[%clk 0:03:00.2]} 3. d4 {[%clk 0:02:56.9]} 3... d6 {[%clk 0:02:58.7]}
4. Nf3 {[%clk 0:02:57.3]} 4... Nc6 {[%clk 0:02:58.5]} 5. exd6 {[%clk 0:02:51.8]}
5... exd6 {[%clk 0:02:59.1]} 6. Be2 {[%clk 0:02:47.8]} 6... Be7 {[%clk
0:02:59.8]} 7. O-O {[%clk 0:02:48]} 7... O-O {[%clk 0:03:00.8]} 8. c4 {[%clk
0:02:48.8]} 8... Nb6 {[%clk 0:03:01.5]} 9. d5 {[%clk 0:02:50]} 9... Ne5 {[%clk
0:03:02.4]} 10. Nxe5 {[%clk 0:02:50.3]} 10... dxe5 {[%clk 0:03:04.3]} 11. Be3
{[%clk 0:02:49.2]} 11... Bf5 {[%clk 0:03:04]} 12. Nc3 {[%clk 0:02:49.8]} 12...
Nd7 {[%clk 0:02:35.4]} 13. Qd2 {[%clk 0:02:48.6]} 13... a5 {[%clk 0:02:34.4]}
14. Bf3 {[%clk 0:02:46.9]} 14... Nc5 {[%clk 0:02:32.3]} 15. Rad1 {[%clk
0:02:37.9]} 15... Rb8 {[%clk 0:02:30.1]} 16. Rfe1 {[%clk 0:02:36.6]} 16... f6
{[%clk 0:02:23]} 17. a3 {[%clk 0:02:31.5]} 17... b6 {[%clk 0:02:23]} 18. Be2
{[%clk 0:02:26.7]} 18... Ne4 {[%clk 0:02:19.1]} 19. Nxe4 {[%clk 0:02:26.1]}
19... Bxe4 {[%clk 0:02:21]} 20. Bd3 {[%clk 0:02:18.4]} 20... Bxd3 {[%clk
0:02:15.7]} 21. Qxd3 {[%clk 0:02:17.5]} 21... Qd7 {[%clk 0:02:16.4]} 22. h3
{[%clk 0:02:11.3]} 22... Rfd8 {[%clk 0:02:15.7]} 23. f4 {[%clk 0:02:10.5]} 23...
Bd6 {[%clk 0:02:13.4]} 24. fxe5 {[%clk 0:02:08.8]} 24... Bxe5 {[%clk 0:02:14.6]}
25. Bd4 {[%clk 0:02:09.8]} 25... Bd6 {[%clk 0:02:06.5]} 26. Re6 {[%clk
0:02:07.5]} 26... Re8 {[%clk 0:02:07.6]} 27. Rde1 {[%clk 0:02:07.8]} 27... Rxe6
{[%clk 0:01:59.1]} 28. dxe6 {[%clk 0:01:56.2]} 28... Qc6 {[%clk 0:01:56]} 29.
Kh1 {[%clk 0:01:29]} 29... Re8 {[%clk 0:01:55.5]} 30. Bc3 {[%clk 0:01:28.5]}
30... Bf8 {[%clk 0:01:25.3]} 31. Qf5 {[%clk 0:00:59.3]} 31... Qxc4 {[%clk
0:01:19.9]} 32. Re4 {[%clk 0:00:42.4]} 32... Qd3 {[%clk 0:01:11.9]} 33. Bxf6
{[%clk 0:00:29.9]} 33... Qd1+ {[%clk 0:00:51.4]} 34. Kh2 {[%clk 0:00:28.9]}
34... gxf6 {[%clk 0:00:28.7]} 35. Qxf6 {[%clk 0:00:15.3]} 35... Bd6+ {[%clk
0:00:20.2]} 36. g3 {[%clk 0:00:15.7]} 36... Qc2+ {[%clk 0:00:20.7]} 37. Kg1
{[%clk 0:00:16.8]} 37... Qxe4 {[%clk 0:00:16.8]} 38. Qf7+ {[%clk 0:00:18]} 38...
Kh8 {[%clk 0:00:16.7]} 39. Qf6+ {[%clk 0:00:19.1]} 39... Kg8 {[%clk 0:00:17.6]}
40. Qf7+ {[%clk 0:00:20.3]} 40... Kh8 {[%clk 0:00:18.9]} 41. Qf6+ {[%clk
0:00:21.1]} 41... Kg8 {[%clk 0:00:20.1]} 42. Qf7+ {[%clk 0:00:21.4]} 1/2-1/2

[Event "*** Titled Tuesday 3|2 Blitz"]
[Site "Chess.com"]
[Date "2015.05.05"]
[Round "3"]
[White "Keranke"]
[Black "iFrancisco"]
[Result "1-0"]
[WhiteElo "2555"]
[BlackElo "2287"]
[TimeControl "180+2"]
[EndTime "11:36:13 PDT"]
[Termination "Keranke won by resignation"]

1. d4 {[%clk 0:03:01.9]} 1... d5 {[%clk 0:03:00.4]} 2. c4 {[%clk 0:03:03.1]}
2... e6 {[%clk 0:03:01.6]} 3. Nf3 {[%clk 0:03:04.5]} 3... Nf6 {[%clk 0:03:02.8]}
4. g3 {[%clk 0:03:06.2]} 4... Bb4+ {[%clk 0:03:03.2]} 5. Nbd2 {[%clk 0:03:06.5]}
5... b6 {[%clk 0:03:00]} 6. Bg2 {[%clk 0:03:06.5]} 6... Bb7 {[%clk 0:03:00.6]}
7. Qa4+ {[%clk 0:03:04.9]} 7... Nc6 {[%clk 0:02:58.9]} 8. Ne5 {[%clk 0:03:06.4]}
8... Qd6 {[%clk 0:02:44.1]} 9. O-O {[%clk 0:03:00.1]} 9... O-O {[%clk
0:02:43.3]} 10. Ndf3 {[%clk 0:02:59.3]} 10... Nxd4 {[%clk 0:02:13.2]} 11. a3
{[%clk 0:02:45.4]} 11... Nxe2+ {[%clk 0:01:28.7]} 12. Kh1 {[%clk 0:02:46.1]}
12... Nxc1 {[%clk 0:01:28.5]} 13. axb4 {[%clk 0:02:35.4]} 13... Ne2 {[%clk
0:01:28.7]} 14. Rfe1 {[%clk 0:02:35.7]} 14... Nxg3+ {[%clk 0:01:08.9]} 15. hxg3
{[%clk 0:02:37.6]} 15... Ne4 {[%clk 0:01:10]} 16. Kg1 {[%clk 0:02:34.4]} 16...
f6 {[%clk 0:01:07.6]} 17. Ng4 {[%clk 0:02:12.8]} 17... dxc4 {[%clk 0:01:07.8]}
18. Ne3 {[%clk 0:02:13.2]} 18... c3 {[%clk 0:00:44]} 19. Rad1 {[%clk 0:01:58.9]}
19... Qe7 {[%clk 0:00:44]} 20. Qb3 {[%clk 0:01:45.3]} 20... cxb2 {[%clk
0:00:34]} 21. Qxb2 {[%clk 0:01:47.2]} 21... Nd6 {[%clk 0:00:30.6]} 22. Nd5
{[%clk 0:01:37.1]} 22... Qf7 {[%clk 0:00:28.8]} 23. Nc3 {[%clk 0:01:24.8]} 23...
e5 {[%clk 0:00:25.8]} 24. b5 {[%clk 0:01:22.1]} 24... Rfd8 {[%clk 0:00:25.4]}
25. Qc2 {[%clk 0:01:22.3]} 25... a5 {[%clk 0:00:24.1]} 26. bxa6 {[%clk
0:01:22.2]} 26... Rxa6 {[%clk 0:00:25]} 27. Qd3 {[%clk 0:01:15.4]} 27... Ra3
{[%clk 0:00:23.9]} 28. Nxe5 {[%clk 0:01:06.7]} 28... fxe5 {[%clk 0:00:17]} 29.
Bxb7 {[%clk 0:01:08.2]} 29... Nxb7 {[%clk 0:00:15.8]} 30. Qxd8+ {[%clk
0:01:09.6]} 30... Nxd8 {[%clk 0:00:16]} 31. Rxd8+ {[%clk 0:01:11.5]} 31... Qf8
{[%clk 0:00:17.9]} 32. Rxf8+ {[%clk 0:01:13]} 32... Kxf8 {[%clk 0:00:19.8]} 33.
Nb5 {[%clk 0:01:14.7]} 33... Ra5 {[%clk 0:00:19.8]} 34. Nxc7 {[%clk 0:01:16]}
34... Ke7 {[%clk 0:00:21.5]} 35. Rd1 {[%clk 0:01:13.8]} 35... b5 {[%clk
0:00:19]} 36. Rd5 {[%clk 0:01:12.5]} 36... Ra1+ {[%clk 0:00:19.6]} 37. Kg2
{[%clk 0:01:13.6]} 37... b4 {[%clk 0:00:20.7]} 38. Rb5 {[%clk 0:01:14]} 38...
Kd6 {[%clk 0:00:19.7]} 39. Ne8+ {[%clk 0:01:14.9]} 39... Ke7 {[%clk 0:00:20.9]}
40. Nxg7 {[%clk 0:01:16]} 40... Rb1 {[%clk 0:00:21.4]} 41. Nf5+ {[%clk 0:01:15]}
41... Ke6 {[%clk 0:00:21.4]} 42. Ne3 {[%clk 0:01:15.9]} 42... Kd6 {[%clk
0:00:22.4]} 43. Nc2 {[%clk 0:01:12.1]} 43... b3 {[%clk 0:00:22.7]} 44. Na3
{[%clk 0:01:13.7]} 44... Rb2 {[%clk 0:00:23.1]} 45. Nc4+ {[%clk 0:01:14.8]}
45... Kc6 {[%clk 0:00:24.4]} 46. Rb8 {[%clk 0:01:10]} 46... Rc2 {[%clk
0:00:25.3]} 47. Nxe5+ {[%clk 0:01:10.7]} 47... Kd5 {[%clk 0:00:26.6]} 48. Nd3
{[%clk 0:01:11.3]} 48... Rc3 {[%clk 0:00:28]} 49. Nf4+ {[%clk 0:01:11.3]} 49...
Ke4 {[%clk 0:00:29.1]} 50. Rb4+ {[%clk 0:01:07.3]} 50... Ke5 {[%clk 0:00:28.7]}
51. Ne2 {[%clk 0:01:08.5]} 51... Rc2 {[%clk 0:00:29.4]} 52. Nd4 {[%clk
0:01:09.3]} 52... Rb2 {[%clk 0:00:22.2]} 53. Rxb3 {[%clk 0:01:07.7]} 53... Ra2
{[%clk 0:00:23.7]} 54. Nf3+ {[%clk 0:01:08.9]} 54... Kf5 {[%clk 0:00:24.9]} 55.
Rb7 {[%clk 0:01:10.1]} 55... h6 {[%clk 0:00:26.2]} 56. Rb6 {[%clk 0:01:09.7]}
56... h5 {[%clk 0:00:27]} 57. Nh4+ {[%clk 0:01:10.4]} 57... Kg5 {[%clk 0:00:28]}
58. Rb5+ {[%clk 0:01:11.2]} 1-0

[Event "*** Titled Tuesday 3|2 Blitz"]
[Site "Chess.com"]
[Date "2015.05.05"]
[Round "3"]
[White "kesarev"]
[Black "vinceyoung15"]
[Result "0-1"]
[WhiteElo "2171"]
[BlackElo "2115"]
[TimeControl "180+2"]
[EndTime "11:36:13 PDT"]
[Termination "vinceyoung15 won by resignation"]

1. Nf3 {[%clk 0:03:01.9]} 1... Nf6 {[%clk 0:02:32.6]} 2. c4 {[%clk 0:03:01.6]}
2... g6 {[%clk 0:02:33.4]} 3. Nc3 {[%clk 0:03:02.3]} 3... Bg7 {[%clk 0:02:34.5]}
4. e4 {[%clk 0:03:03.9]} 4... O-O {[%clk 0:02:36.1]} 5. d4 {[%clk 0:03:05.3]}
5... d6 {[%clk 0:02:37.4]} 6. h3 {[%clk 0:03:06.4]} 6... Nbd7 {[%clk 0:02:38.9]}
7. Bg5 {[%clk 0:03:02.1]} 7... e5 {[%clk 0:02:39.2]} 8. d5 {[%clk 0:03:02.8]}
8... h6 {[%clk 0:02:39.8]} 9. Be3 {[%clk 0:03:03.2]} 9... Nh5 {[%clk 0:02:38.6]}
10. Nd2 {[%clk 0:03:02.6]} 10... Nf4 {[%clk 0:02:30.6]} 11. g3 {[%clk
0:03:01.2]} 11... Nh5 {[%clk 0:02:30.7]} 12. Be2 {[%clk 0:03:01.5]} 12... Nhf6
{[%clk 0:02:30.9]} 13. Qc2 {[%clk 0:02:57.7]} 13... a6 {[%clk 0:02:25.7]} 14. g4
{[%clk 0:02:49]} 14... Nh7 {[%clk 0:02:10]} 15. Nf1 {[%clk 0:02:47.6]} 15... Nc5
{[%clk 0:01:55.4]} 16. Ng3 {[%clk 0:02:46.1]} 16... Qh4 {[%clk 0:01:53.7]} 17.
O-O-O {[%clk 0:02:35]} 17... b5 {[%clk 0:01:51.6]} 18. b4 {[%clk 0:02:28.4]}
18... Na4 {[%clk 0:01:49.7]} 19. Nxa4 {[%clk 0:02:27.3]} 19... bxa4 {[%clk
0:01:51]} 20. Kb2 {[%clk 0:02:25.5]} 20... Bd7 {[%clk 0:01:48.8]} 21. Ka3 {[%clk
0:02:25.8]} 21... Rfb8 {[%clk 0:01:46.6]} 22. Rb1 {[%clk 0:02:19.1]} 22... Qe7
{[%clk 0:01:40]} 23. Qd2 {[%clk 0:01:59.2]} 23... c6 {[%clk 0:01:32.4]} 24. Bxh6
{[%clk 0:01:44.4]} 24... Bf6 {[%clk 0:01:16.8]} 25. Be3 {[%clk 0:01:38.9]} 25...
cxd5 {[%clk 0:01:14.6]} 26. cxd5 {[%clk 0:01:30.4]} 26... Bb5 {[%clk 0:01:05.7]}
27. Rhc1 {[%clk 0:01:26.5]} 27... a5 {[%clk 0:01:06.4]} 28. bxa5 {[%clk
0:01:19.5]} 28... Bxe2 {[%clk 0:01:06.6]} 29. Nxe2 {[%clk 0:01:19.7]} 29... Nf8
{[%clk 0:01:07.4]} 30. Nc3 {[%clk 0:01:06.9]} 30... Rxb1 {[%clk 0:00:57.9]} 31.
Nxb1 {[%clk 0:01:06.6]} 31... Qb7 {[%clk 0:00:53.8]} 32. Qb4 {[%clk 0:00:51.5]}
32... Qa6 {[%clk 0:00:53.6]} 33. Rc6 {[%clk 0:00:45.9]} 33... Qd3+ {[%clk
0:00:54.2]} 34. Nc3 {[%clk 0:00:45.2]} 34... Bd8 {[%clk 0:00:50.8]} 35. Bb6
{[%clk 0:00:37.2]} 35... Bg5 {[%clk 0:00:51.4]} 36. Qc4 {[%clk 0:00:26.8]} 36...
Qc2 {[%clk 0:00:45.4]} 37. Ne2 {[%clk 0:00:18.6]} 37... Qb1 {[%clk 0:00:33.2]}
38. Kxa4 {[%clk 0:00:17.3]} 38... Nd7 {[%clk 0:00:31.7]} 39. Qb3 {[%clk
0:00:14]} 39... Qxe4+ {[%clk 0:00:27]} 40. Ka3 {[%clk 0:00:10.1]} 40... Qxe2
{[%clk 0:00:24.8]} 41. Rxd6 {[%clk 0:00:10.6]} 41... Be7 {[%clk 0:00:24.9]} 42.
Bc7 {[%clk 0:00:10.4]} 42... Bxd6+ {[%clk 0:00:23.1]} 0-1

[Event "*** Titled Tuesday 3|2 Blitz"]
[Site "Chess.com"]
[Date "2015.05.05"]
[Round "3"]
[White "Kacparov"]
[Black "alturas_pacificas"]
[Result "1-0"]
[WhiteElo "2441"]
[BlackElo "2136"]
[TimeControl "180+2"]
[EndTime "11:36:23 PDT"]
[Termination "Kacparov won by resignation"]

1. e4 {[%clk 0:03:01.9]} 1... g6 {[%clk 0:02:59.5]} 2. d4 {[%clk 0:03:02.6]}
2... Bg7 {[%clk 0:03:00.5]} 3. Nc3 {[%clk 0:03:03.3]} 3... d6 {[%clk 0:03:01.4]}
4. f4 {[%clk 0:03:03.1]} 4... a6 {[%clk 0:03:00.1]} 5. Nf3 {[%clk 0:03:03.8]}
5... b5 {[%clk 0:03:00]} 6. Bd3 {[%clk 0:03:04.5]} 6... Nd7 {[%clk 0:02:58.8]}
7. e5 {[%clk 0:02:59.1]} 7... c5 {[%clk 0:02:57.7]} 8. Be4 {[%clk 0:02:49.7]}
8... Rb8 {[%clk 0:02:57.2]} 9. dxc5 {[%clk 0:02:45.9]} 9... Nxc5 {[%clk
0:02:56.8]} 10. Bc6+ {[%clk 0:02:46.5]} 10... Bd7 {[%clk 0:02:52.4]} 11. Bxd7+
{[%clk 0:02:46.9]} 11... Qxd7 {[%clk 0:02:51.8]} 12. exd6 {[%clk 0:02:47.7]}
12... exd6 {[%clk 0:02:50.9]} 13. O-O {[%clk 0:02:48]} 13... Ne7 {[%clk
0:02:48.8]} 14. Be3 {[%clk 0:02:41.6]} 14... Rc8 {[%clk 0:02:33.7]} 15. Bd4
{[%clk 0:02:26.7]} 15... Bxd4+ {[%clk 0:02:08]} 16. Qxd4 {[%clk 0:02:24.7]}
16... O-O {[%clk 0:02:09.3]} 17. Rad1 {[%clk 0:02:13.3]} 17... Nf5 {[%clk
0:02:09.5]} 18. Qf2 {[%clk 0:01:51.5]} 18... Rfe8 {[%clk 0:02:00.4]} 19. Rfe1
{[%clk 0:01:50.9]} 19... Rxe1+ {[%clk 0:01:36.4]} 20. Rxe1 {[%clk 0:01:51.7]}
20... Re8 {[%clk 0:01:37.4]} 21. Nd5 {[%clk 0:01:46.6]} 21... Kg7 {[%clk
0:00:51.3]} 22. Rxe8 {[%clk 0:00:55.8]} 22... Qxe8 {[%clk 0:00:49.1]} 23. Nd4
{[%clk 0:00:45.4]} 23... Nxd4 {[%clk 0:00:24.2]} 24. Qxd4+ {[%clk 0:00:45.8]}
24... Kh6 {[%clk 0:00:24.6]} 25. Kf1 {[%clk 0:00:44.1]} 25... Qe4 {[%clk
0:00:14.7]} 26. Qxe4 {[%clk 0:00:41.6]} 26... Nxe4 {[%clk 0:00:15.7]} 27. Nc7
{[%clk 0:00:41.9]} 27... Nd2+ {[%clk 0:00:14.3]} 28. Ke2 {[%clk 0:00:41.9]}
28... Nc4 {[%clk 0:00:16.2]} 29. b3 {[%clk 0:00:42.5]} 29... Na3 {[%clk
0:00:17.7]} 30. Kd3 {[%clk 0:00:42.2]} 30... a5 {[%clk 0:00:19.2]} 31. Ne8
{[%clk 0:00:41.4]} 31... d5 {[%clk 0:00:15.1]} 32. c3 {[%clk 0:00:36.6]} 32...
Kh5 {[%clk 0:00:14.1]} 33. Nf6+ {[%clk 0:00:36.7]} 33... Kh4 {[%clk 0:00:14.9]}
34. Nxd5 {[%clk 0:00:37]} 34... h5 {[%clk 0:00:15.9]} 35. Ne3 {[%clk 0:00:35.6]}
35... f6 {[%clk 0:00:14.6]} 36. c4 {[%clk 0:00:36.4]} 36... bxc4+ {[%clk
0:00:15.2]} 37. bxc4 {[%clk 0:00:37.9]} 37... g5 {[%clk 0:00:16.8]} 38. fxg5
{[%clk 0:00:36.5]} 38... fxg5 {[%clk 0:00:18.7]} 39. c5 {[%clk 0:00:35]} 39...
g4 {[%clk 0:00:18.6]} 40. c6 {[%clk 0:00:32.9]} 40... Nb5 {[%clk 0:00:19.5]} 41.
Kc4 {[%clk 0:00:31.5]} 41... Nd6+ {[%clk 0:00:20]} 42. Kd5 {[%clk 0:00:31.6]}
42... Nc8 {[%clk 0:00:21.9]} 43. Ke6 {[%clk 0:00:29.9]} 43... a4 {[%clk
0:00:22.5]} 44. c7 {[%clk 0:00:29.6]} 44... a3 {[%clk 0:00:23.2]} 45. Kd7 {[%clk
0:00:30.7]} 45... Nb6+ {[%clk 0:00:24.3]} 46. Kc6 {[%clk 0:00:31.2]} 46... Nc8
{[%clk 0:00:24.8]} 47. Nf5+ {[%clk 0:00:32]} 47... Kg5 {[%clk 0:00:25.1]} 48.
Kb7 {[%clk 0:00:33.3]} 48... g3 {[%clk 0:00:24.3]} 49. hxg3 {[%clk 0:00:32.5]}
49... Kxf5 {[%clk 0:00:21.7]} 50. Kxc8 {[%clk 0:00:33.6]} 50... Kg4 {[%clk
0:00:23.6]} 51. Kb7 {[%clk 0:00:34.9]} 51... Kxg3 {[%clk 0:00:25.5]} 52. c8=Q
{[%clk 0:00:36]} 52... h4 {[%clk 0:00:27.4]} 53. Qh3+ {[%clk 0:00:36.3]} 1-0